[Event "Budapest One Week IM-B 03-2025"]
[Site "Budapest"]
[Date "2025.03.18"]
[Round "2.1"]
[White "Pribelszky, Bence"]
[Black "Jing, Andrew"]
[Result "1-0"]
[Annotator "TA"]
[ECO "A48"]
[WhiteElo "2400"]
[BlackElo "2198"]
[PlyCount "119"]
[EventDate "2025.03.17"]
[EventType "tourn"]
[EventCountry "HUN"]
[SourceTitle "playchess.com"]
[Source "ChessBase"]
[SourceQuality "1"]
[TimeControl "5400+30"]

{[%evp 11,119,25,21,-1,33,8,14,15,25,-25,31,0,0,1,16,20,60,52,55,47,56,56,75,74,126,121,134,108,118,107,120,120,120,111,136,137,165,143,210,212,207,212,328,243,265,194,193,208,245,245,261,183,168,187,349,177,209,192,194,176,185,193,178,180,210,206,620,249,292,291,287,286,300,279,275,290,285,254,313,316,405,312,367,372,442,427,445,449,562,416,650,617,1356,457,457,457,457,457,457,457,868,920,992,960,889,600,29997,29998,29998,29999]} 1. Nf3 {[%emt 0:18:31]} Nf6 {[%emt 0:00:14]} 2. d4 {[%emt 0:00:15]} g6 {[%emt 0:00:04]} 3. Nbd2 {[%emt 0:00:09]} d5 {[%emt 0:02:04]} 4. b3 {[%emt 0:00:19]} Bg7 {[%emt 0:00:06]} 5. Bb2 {[%emt 0:00:07]} O-O {[%emt 0:00:06]} 6. e3 {[%emt 0:00:09]} Bf5 {[%emt 0:03:42]} 7. h3 {[%emt 0:09:46] D04: Colle System.} a5 {[%cal Ba7a5,Ba5a4][%mdl 32]} 8. a3 {[%emt 0:01:15]} c6 {[%emt 0:10:51]} 9. Be2 $146 {[%emt 0:00:35][%cal Bf1e2,Be2f3,Bf3g2][%mdl 32] The position is equal.} (9. c4 Ne4 10. Be2 Nxd2 11. Qxd2 Qb6 12. Qc3 Be4 13. O-O Bxf3 14. Bxf3 e6 15. Rab1 {1-0 Nakamura,H (2775)-Dreev,A (2667) Wch Blitz 8th 2014 (21)}) 9... a4 {[%emt 0:01:46]} 10. b4 {[%emt 0:20:06]} (10. c4 $142) 10... Nbd7 {[%emt 0:00:30]} (10... b5 $11) 11. g4 {[%emt 0:00:30]} Be4 {[%emt 0:00:30]} 12. c4 {[%emt 0:00:30]} Bxf3 {[%emt 0:03:07]} 13. Bxf3 {[%emt 0:00:55]} Nb6 {[%emt 0:00:28]} 14. c5 {[%emt 0:03:50]} Nbd7 {[%emt 0:00:34][%cal Oe7e5]} 15. Bg2 {[%emt 0:00:31]} Ne8 {[%emt 0:00:55]} 16. f4 {[%emt 0:00:39]} e6 {[%emt 0:01:51] White has space advantage and is better} 17. h4 {[%emt 0:03:21]} f5 {[%emt 0:00:49] [#]} ({Better is} 17... b6) 18. g5 $1 $16 {[%emt 0:06:33]} h6 {[%emt 0:01:26]} 19. gxh6 {[%emt 0:15:53]} Bxh6 {[%emt 0:00:06]} 20. Qe2 {[%emt 0:00:19]} Rf7 {[%emt 0:01:55]} 21. O-O-O {[%emt 0:00:22][%cal Ba1d1,Bd1g1,Bg1g5][%mdl 32]} Rg7 {[%emt 0:00:23]} 22. Bf3 {[%emt 0:00:58]} Kh7 {[%emt 0:01:36]} 23. Rdg1 {[%emt 0:00:42]} Nc7 {[%emt 0:01:47]} 24. Qh2 {[%emt 0:02:12]} Rc8 {[%emt 0:02:38]} (24... Ne8 $16 25. Bd1 Nef6) 25. Bd1 $18 {[%emt 0:01:04]} Qe7 {[%emt 0:02:11]} 26. Nf3 {[%emt 0:01:10]} Nf8 {[%emt 0:03:27]} (26... Rh8 27. Bxa4 Ne8) 27. Ng5+ {[%emt 0:05:57]} Bxg5 {[%emt 0:00:07]} 28. Rxg5 {[%emt 0:00:33][%cal Oh4h5]} Kg8 {[%emt 0:03:12]} 29. h5 {[%emt 0:00:17][%cal Bh4h5,Bh5g6][%mdl 32]} Rh7 {[%emt 0:00:51]} 30. Qg2 {[%emt 0:01:15]} Ne8 {[%emt 0:01:04]} 31. hxg6 {[%emt 0:02:00]} (31. Bxa4 Nf6 32. hxg6 Rxh1+ 33. Qxh1 Kg7 $16) 31... Rxh1 {[%emt 0:00:05]} 32. Qxh1 {[%emt 0:00:04]} Qf6 {[%emt 0:04:24] Wards off g7} (32... Kg7 {was worth a try.} 33. Rh5 (33. Bxa4 Nf6 $18) 33... Nf6) 33. Bc3 {[%emt 0:00:50]} (33. Bxa4 Qh8 34. Qg1 Rc7) (33. g7 $142 Nxg7 34. Rg1 (34. Bxa4 Ng6 $18)) 33... Rc7 {[%emt 0:00:26]} 34. Be1 $40 {[%emt 0:03:08][%mdl 128] White has strong attack.} Rg7 {[%emt 0:00:29]} 35. Bh5 {[%emt 0:01:34]} Nxg6 {[%emt 0:00:48]} 36. Qg1 {[%emt 0:00:08]} Kh7 {[%emt 0:00:29]} 37. Rg2 {[%emt 0:01:53]} Nc7 {[%emt 0:02:50]} 38. Bd1 {[%emt 0:00:17]} Nb5 $2 {[%emt 0:02:17]} (38... Ne8 39. Bxa4 Kg8) 39. Kb2 {[%emt 0:00:09]} ({Not} 39. Bxa4 Nxa3 40. Qh1+ Kg8 $16) (39. Qh2+ $142 Kg8 40. Qh6 (40. Bxa4 Nxa3 41. Qh6 Nc4 $14)) 39... Nc7 {[%emt 0:05:06][%cal Bb5c7,Bc7e8,Be8f6,Bf6e4][%mdl 32]} 40. Bxa4 {[%emt 0:00:06]} Ne8 {[%emt 0:00:15]} 41. Bd1 {[%emt 0:00:22]} Qf7 {[%emt 0:01:11]} 42. a4 {[%emt 0:00:53]} Nf6 {[%emt 0:00:06]} 43. b5 {[%emt 0:01:13]} cxb5 {[%emt 0:00:07]} 44. axb5 {[%emt 0:00:04]} Qd7 {[%emt 0:00:19]} 45. Be2 {[%emt 0:00:24]} Ne4 {[%emt 0:00:24]} 46. Ba5 {[%emt 0:01:01]} Qe8 {[%emt 0:01:02]} 47. Kb3 {[%emt 0:00:32]} Qa8 {[%emt 0:00:43]} 48. Bb4 {[%emt 0:00:24]} Qe8 {[%emt 0:00:43]} 49. Qa1 {[%emt 0:00:41]} Kh8 {[%emt 0:00:58]} 50. Qa5 {[%emt 0:00:31]} Kh7 {[%emt 0:01:46]} (50... Nf6 $142 51. Qb6 Nd7) 51. Bh5 {[%emt 0:00:21]} Qd7 {[%emt 0:00:05]} 52. Qb6 {[%emt 0:00:40]} (52. Bxg6+ $142 Rxg6 53. c6) 52... Ne7 {[%emt 0:00:20]} 53. Rxg7+ {[%emt 0:00:11]} Kxg7 {[%emt 0:00:01][%cal Bh7g7,Bg7f7,Bf7g6][%mdl 32]} 54. Be2 {[%emt 0:00:49]} Kf7 {[%emt 0:00:48]} 55. Qa7 {[%emt 0:00:21][%cal Oc5c6] Strongly threatening c6!.} Qc8 {[%emt 0:00:47] [#]} (55... Nf6 $142 56. c6 Nxc6 57. bxc6 Qxc6) 56. c6 $1 {[%emt 0:00:35][%mdl 512]} Nxc6 {[%emt 0:00:04]} 57. bxc6 {[%emt 0:00:04]} Qxc6 {[%emt 0:00:05]} 58. Qb8 {[%emt 0:00:55] White wants to mate with Qf8+.} Kg6 {[%emt 0:00:40]} 59. Qg8+ {[%emt 0:00:17]} Kf6 {[%emt 0:00:05]} 60. Qh8+ {[%emt 0:00:27] Weighted Error Value: White=0.47/Black=0.69  Mistake:       	White=3     	Black=8      Inaccurate:     	White=1     	Black=3      OK:         	White=22    	Black=15     Brilliant:      	White=1     	---} 1-0

[Event "Budapest One Week IM-B 03-2025"]
[Site "Budapest"]
[Date "2025.03.18"]
[Round "2.2"]
[White "Turcsanyi, Vince Gergo"]
[Black "Varga, Zoltan"]
[Result "0-1"]
[Annotator "TA"]
[ECO "C41"]
[WhiteElo "2285"]
[BlackElo "2305"]
[PlyCount "74"]
[EventDate "2025.03.17"]
[EventType "tourn"]
[EventCountry "HUN"]
[SourceTitle "playchess.com"]
[Source "ChessBase"]
[SourceQuality "1"]
[TimeControl "5400+30"]

{[%evp 14,74,41,31,30,-20,-16,-8,-12,-12,-9,-38,-28,-60,-50,-39,-33,-60,-60,-129,-102,-117,-109,-107,-108,-96,-99,-96,-94,-93,-75,-68,-76,-76,-76,-58,0,0,3,0,16,0,0,-392,-381,-373,-392,-382,-373,-472,-472,-466,-472,-465,-462,-714,-710,-5447,-5373,-2127,-2000,-29965,-29964]} 1. e4 {[%emt 0:00:05]} d6 {[%emt 0:18:47]} 2. d4 {[%emt 0:00:36]} Nf6 {[%emt 0:00:05]} 3. Nc3 {[%emt 0:00:24]} e5 {[%emt 0:00:06]} 4. Nf3 {[%emt 0:02:33]} Nbd7 {[%emt 0:00:41]} 5. Be2 {[%emt 0:03:53]} c6 {[%emt 0:00:32]} 6. a4 {[%emt 0:00:53]} Be7 {[%emt 0:00:07]} 7. O-O {[%emt 0:03:16]} O-O {[%emt 0:00:05]} 8. Re1 {[%emt 0:12:08]} Re8 {[%emt 0:00:51] C41: Philidor Defence.} 9. dxe5 $146 {[%emt 0:09:16]} (9. a5) (9. a5 exd4 10. Nxd4 Bf8 11. Bf1 Nc5 12. f3 d5 13. e5 Nfd7 14. f4 f6 15. e6 Nb8 16. f5 {1-0 Duda,J (2732)-Sanal,V (2567) Titled Tuesday intern op 13th Feb Early blitz 2024 (7)}) 9... dxe5 $11 {[%emt 0:00:10]} 10. Bc4 {[%emt 0:01:25]} Bb4 {[%emt 0:03:43] The position is equal.} 11. Qe2 {[%emt 0:18:52] [#] And now Ng5 would win.} Qe7 {[%emt 0:01:23]} 12. Nh4 {[%emt 0:10:40]} (12. Ng5 $5 Rf8 $8 13. a5 $11) 12... Nc5 {[%emt 0:12:25]} 13. Nf5 {[%emt 0:05:44]} Bxf5 {[%emt 0:00:56]} 14. exf5 {[%emt 0:00:02]} Rad8 {[%emt 0:00:14]} 15. Bg5 {[%emt 0:03:03]} h6 {[%emt 0:03:11]} 16. Bh4 {[%emt 0:08:23]} ({Better is} 16. Be3 $15) 16... Rd4 $17 {[%emt 0:04:40]} 17. g3 {[%emt 0:09:53]} Red8 {[%emt 0:12:18][%cal Od4h4] Black is more active.} 18. Red1 {[%emt 0:02:30]} Bxc3 {[%emt 0:09:25]} 19. bxc3 {[%emt 0:00:30]} Rxd1+ {[%emt 0:00:29]} 20. Rxd1 {[%emt 0:00:06]} Rxd1+ {[%emt 0:00:35]} (20... Nxa4 21. Bxf6 (21. Rxd8+ Qxd8 22. Qxe5 Nb6 $16) 21... Qxf6 (21... Rxd1+ 22. Qxd1 gxf6 23. Qg4+ Kh8 24. Bxf7 $16) 22. Rxd8+ Qxd8 23. Qxe5 $11) 21. Qxd1 {[%emt 0:00:01]} Nce4 {[%emt 0:00:14][%cal Oe7c5]} ({Of course not} 21... Nxa4 $6 22. Bxf6 gxf6 (22... Qxf6 23. Qd7 $14) 23. Qg4+ Kh7 24. Bxf7 Qxf7 25. Qxa4 $11) 22. Bxf6 {[%emt 0:05:11]} Nxf6 {[%emt 0:00:24][%mdl 4096] Endgame KQB-KQN} 23. Qd3 {[%emt 0:01:18]} b6 {[%emt 0:06:20]} 24. Bb3 {[%emt 0:01:10]} Nd7 {[%emt 0:00:07]} (24... e4 $15 25. Qd2 Ng4) 25. Qa6 $11 {[%emt 0:00:26]} Nf8 {[%emt 0:01:34]} 26. Qc8 {[%emt 0:00:31]} c5 {[%emt 0:04:34]} 27. Qb8 {[%emt 0:00:05]} e4 $1 {[%emt 0:00:12] aiming for ...e3.} 28. Kg2 $2 {[%emt 0:00:59][%mdl 8192]} (28. Qf4 $11) 28... e3 $19 {[%emt 0:01:03]} 29. fxe3 {[%emt 0:00:22]} c4 $1 {[%emt 0:00:33]} (29... Qxe3 30. c4 $17) 30. Ba2 {[%emt 0:00:39]} Qe4+ {[%emt 0:00:09]} (30... Qxe3 31. Qf4 Qe2+ (31... Qxc3 32. Qxc4 Qd2+ 33. Kh3 $11) 32. Kh3 $17) 31. Kf1 {[%emt 0:00:28] [#]} Qf3+ {[%emt 0:03:24]} ({Not} 31... Qxc2 32. Bxc4 Qxa4 (32... Qxh2 33. Qe5 $15) (32... Qxf5+ 33. Qf4 $15) 33. Be2 $17) (31... Qxe3 32. Qf4 Qxc3 33. Qxc4 Qf3+ 34. Ke1 Qxf5 35. Kd2 $17) 32. Ke1 {[%emt 0:00:13]} Qxe3+ {[%emt 0:00:06]} 33. Kd1 {[%emt 0:00:49]} Qxc3 {[%emt 0:00:05]} 34. Bb1 {[%emt 0:00:34]} (34. Qxa7 $142 Qa1+ 35. Kd2 Qxa2 36. Qa6) 34... Qb2 {[%emt 0:00:21]} 35. Qxa7 {[%emt 0:00:05]} Qxb1+ {[%emt 0:00:20]} 36. Kd2 {[%emt 0:00:04]} Qb4+ {[%emt 0:00:14]} 37. Kc1 {[%emt 0:00:08]} c3 {[%emt 0:00:20] Weighted Error Value: White=1.01/Black=0.04 (flawless)   Loses game:     	White=1     	---        Mistake:       	White=3     	Black=1      Inaccurate:     	White=4     	---        OK:         	White=8     	Black=13     Best:        	White=2     	Black=2      Strong:       	---       	Black=2} 0-1

[Event "Budapest One Week IM-B 03-2025"]
[Site "Budapest"]
[Date "2025.03.18"]
[Round "2.3"]
[White "Venkatesh, Narayan"]
[Black "Kustar, Sandor"]
[Result "1-0"]
[Annotator "TA"]
[ECO "E42"]
[WhiteElo "2203"]
[BlackElo "2231"]
[PlyCount "59"]
[EventDate "2025.03.17"]
[EventType "tourn"]
[EventCountry "HUN"]
[SourceTitle "playchess.com"]
[Source "ChessBase"]
[SourceQuality "1"]
[TimeControl "5400+30"]

{[%evp 24,59,44,27,41,35,37,-19,-10,-74,1,0,0,-1,0,0,-12,-12,0,4,110,100,113,101,110,110,127,126,134,133,137,165,135,149,202,182,190,167]} 1. d4 {[%emt 0:00:06]} Nf6 {[%emt 0:00:12]} 2. c4 {[%emt 0:00:06]} e6 {[%emt 0:00:13]} 3. Nc3 {[%emt 0:00:08]} Bb4 {[%emt 0:00:15]} 4. e3 {[%emt 0:00:10]} c5 {[%emt 0:00:15]} 5. Nge2 {[%emt 0:00:10]} cxd4 {[%emt 0:00:47]} 6. exd4 {[%emt 0:00:10]} O-O {[%emt 0:00:43]} 7. a3 {[%emt 0:00:11]} Be7 {[%emt 0:00:25]} 8. d5 {[%emt 0:00:10]} exd5 {[%emt 0:00:07]} 9. cxd5 {[%emt 0:00:01]} Re8 {[%emt 0:00:18]} 10. d6 {[%emt 0:01:39]} Bf8 {[%emt 0:00:06]} 11. g3 {[%emt 0:00:06]} b6 {[%emt 0:02:09]} 12. Bg2 {[%emt 0:00:42]} Nc6 {[%emt 0:00:08]} 13. O-O {[%emt 0:02:29]} Ba6 {[%emt 0:08:38] E42: Nimzo-Indian: Rubinstein: 4...c5 5 Ne2.} 14. Re1 {[%emt 0:03:56]} Rc8 {[%emt 0:04:08]} 15. Be3 $146 {[%emt 0:04:40]} ({White should try} 15. Bf4 $14) ({Predecessor:} 15. Bf4 Ne5 16. Qa4 Bc4 17. b3 Bxe2 18. Rxe2 Nd3 19. Rxe8 Nxe8 {½-½ Sturua,Z (2595)-Polak,T (2500) Biel MTO op 1998 (11)}) 15... Ng4 $11 {[%emt 0:10:17] The position is equal.} 16. Bf4 {[%emt 0:27:17]} (16. Nf4 $11 {remains equal.} Nxe3 17. fxe3) 16... Qf6 {[%emt 0:24:46]} (16... g5 $17 17. Bd2 Qf6) 17. h3 {[%emt 0:14:33] A sharp opening} Nge5 {[%emt 0:01:25] and ...Nd3 should not be overlooked} 18. Nd5 $132 {[%emt 0:09:01][%mdl 2048] White is not holding back} Qxd6 {[%emt 0:02:19]} 19. Nec3 {[%emt 0:06:27]} Qg6 {[%emt 0:18:56]} 20. b4 {[#] Hoping for b5.} Bc4 21. b5 {[%emt 0:04:31]} Nd3 {[%emt 0:00:47]} (21... Bb3 $1 $11 22. Qb1 (22. Qxb3 Nd4 $14) 22... Bxd5 23. Nxd5 Nd3 24. Rxe8 Rxe8) 22. Rxe8 $16 {[%emt 0:00:11]} Rxe8 {[%emt 0:00:02]} 23. bxc6 {[%emt 0:01:03] White plays on the queen side and is better} dxc6 {[%emt 0:00:45]} ({Avoid the trap} 23... Re1+ $2 24. Qxe1 Nxe1 25. cxd7 (25. Rxe1 dxc6 26. Ne7+ Bxe7 $16) 25... Nxg2 26. d8=Q $18 (26. d8=B $2 {too greedy.} Nxf4 27. Nxf4 Qc6 $19)) 24. Ne3 {[%emt 0:00:29]} Ba6 {[%emt 0:05:54] [#]} 25. Qa4 $1 {[%emt 0:03:32][%csl LRa6,LRc6]} Qf6 {[%emt 0:04:41]} 26. Qxa6 {[%emt 0:04:12] White is clearly better.} Qxc3 {[%emt 0:00:09]} 27. Rd1 {[%emt 0:01:10]} Nxf4 {[%emt 0:02:01]} 28. gxf4 {[%emt 0:00:03]} Bxa3 {[%emt 0:02:14]} (28... Qb3 $16 {keeps fighting.}) 29. Qxa7 $18 {[%emt 0:01:26]} Bc5 {[%emt 0:01:37]} 30. Qd7 {[%emt 0:01:04] Weighted Error Value: White=0.11 (very precise) /Black=0.19 (very precise)   Mistake:       	White=2     	Black=3      OK:         	White=10    	Black=6      Best:        	White=2     	---        Strong:       	White=1     	---} 1-0

[Event "Budapest One Week IM-B 03-2025"]
[Site "Budapest"]
[Date "2025.03.18"]
[Round "2.4"]
[White "Shah, Vishwa"]
[Black "Luebke, Florentin"]
[Result "1-0"]
[Annotator "TA"]
[ECO "B23"]
[WhiteElo "2172"]
[BlackElo "2233"]
[PlyCount "109"]
[EventDate "2025.03.17"]
[EventType "tourn"]
[EventCountry "HUN"]
[SourceTitle "playchess.com"]
[Source "ChessBase"]
[SourceQuality "1"]
[TimeControl "5400+30"]

{[%evp 9,109,0,12,0,14,-20,9,3,10,0,25,35,90,48,75,68,102,76,97,30,156,146,217,222,225,215,224,216,210,221,396,395,412,375,358,337,379,316,296,286,426,431,481,456,448,372,352,369,362,366,367,350,387,425,436,401,418,391,525,537,552,546,585,531,610,604,622,422,390,0,1526,1576,2102,1703,2396,2020,6087,3608,3719,3334,29982,29983,29983,29984,29984,29984,29985,29986,29986,29987,29987,29988,29988,29989,29985,29986,29992,29993,29993,29993,29993,29988]} 1. e4 {[%emt 0:00:01]} c5 {[%emt 0:00:10]} 2. Nc3 {[%emt 0:00:06]} d6 {[%emt 0:00:30]} 3. d4 {[%emt 0:00:13]} cxd4 {[%emt 0:00:56]} 4. Qxd4 {[%emt 0:00:04]} Nc6 {[%emt 0:00:30]} 5. Qd2 {[%emt 0:00:05]} g6 {[%emt 0:01:01]} 6. b3 {[%emt 0:00:35] B23: Closed Sicilian: Lines without g3.} Bh6 {[%emt 0:01:09]} 7. f4 {[%emt 0:00:20]} Nf6 {[%emt 0:01:02]} 8. Bb2 {[%emt 0:00:07] The position is equal.} O-O {[%emt 0:01:45]} 9. O-O-O {[%emt 0:00:09]} Re8 {[%emt 0:01:59]} 10. Kb1 {[%emt 0:01:34]} a5 $146 {[%emt 0:04:08]} (10... e5 $14) (10... a6 11. Qf2 Bg4 12. Re1 Bc8 13. Qh4 Bg7 14. Nf3 e5 15. Bc4 b5 16. fxe5 dxe5 {1-0 Mohit,K (1884)-Pande,G (1699) New Delhi Matrix Cup 4th 2025 (6)}) 11. a4 {[%emt 0:00:39]} Nb4 {[%emt 0:05:54]} 12. Nf3 {[%emt 0:13:35]} Nh5 {[%emt 0:04:04]} 13. Ng5 {[%emt 0:12:14]} Bg4 {[%emt 0:02:10]} 14. Re1 {[%emt 0:06:58]} (14. Bc4 $1 $16 Rf8 15. Rde1) 14... e5 {[%emt 0:11:00] White now steadily converts the win.} (14... Rc8 $1 $11) 15. Bc4 $36 {[%emt 0:00:30][%mdl 2048] White is in control.} Be6 {[%emt 0:01:40]} (15... Bxg5 $16 16. fxg5 Be6) 16. Nxe6 $18 {[%emt 0:00:44]} fxe6 {[%emt 0:16:28]} 17. Rd1 {[%emt 0:00:45][%cal Be1d1,Bd1d6,Bd6b6][%mdl 32]} exf4 {[%emt 0:11:00]} 18. Qxd6 {[%emt 0:02:01]} Qxd6 {[%emt 0:00:15]} 19. Rxd6 {[%emt 0:00:01][%cal Oc3b5]} Kf7 $2 {[%emt 0:00:36]} (19... Bg7 20. Nb5 (20. Rxe6 Rxe6 21. Bxe6+ Kf8 $18) (20. Bxe6+ Kf8 $18) 20... Bxb2) 20. Nb5 {[%emt 0:02:32]} Nf6 {[%emt 0:14:29]} 21. Bxf6 {[%emt 0:08:24]} Kxf6 {[%emt 0:00:15] Black is weak on the light squares} 22. Nc7 {[%emt 0:00:03]} Bf8 {[%emt 0:04:19]} 23. Nxe8+ {[%emt 0:00:20]} Rxe8 {[%emt 0:00:09]} 24. Rb6 {[%emt 0:00:12]} Bc5 {[%emt 0:02:45]} (24... Nc6 {keeps fighting.} 25. Rf1 (25. Rxb7 Ne5 $18) 25... g5 26. Rxb7 Ne5) 25. Rxb7 {[%emt 0:00:07]} Bd4 {[%emt 0:04:55]} 26. Rd1 {[%emt 0:05:29]} Ke5 {[%emt 0:00:06]} 27. Bd3 {[%emt 0:07:25]} Nxd3 {[%emt 0:01:12]} 28. cxd3 {[%emt 0:00:01][%mdl 4096] Endgame KRR-KRB} (28. Rxd3 Kxe4 29. Rxh7 Rf8 $18) 28... Be3 {[%emt 0:01:30]} 29. Rb5+ {[%emt 0:03:47]} (29. Rxh7 Rb8 30. Ka2 Rc8 $16) 29... Kd4 {[%emt 0:00:12]} 30. Rxa5 {[%emt 0:00:26]} g5 {[%emt 0:00:18]} 31. Rxg5 {[%emt 0:03:26]} f3 {[%emt 0:01:58]} 32. Rg7 {[%emt 0:00:31]} f2 {[%emt 0:00:41]} 33. Kb2 {[%emt 0:03:25]} (33. Rxh7 Rf8 $18) 33... Bd2 {[%emt 0:04:00]} 34. Rf7 {[%emt 0:04:09] Dodges Rf8} (34. Rxd2 $2 f1=Q (34... f1=R $2 {is the wrong capture.} 35. Rxh7 Rc8 36. Rd7+ Ke3 37. Rc2 $18) 35. Rc2 Kxd3 (35... Qxd3 $2 36. Rd7+ Kxe4 37. Rc4+ Ke3 38. Rc3 $18) 36. Rxh7 Qf6+ (36... Kxe4 $2 37. g3 $19) 37. Kb1 Qf1+ (37... Kxe4 $2 38. Rh4+ Ke5 39. g3 $19) 38. Kb2 Kxe4 39. Rh4+ Kf5 $19) ({Not} 34. Rxh7 Rf8 35. Rd7+ (35. Rxd2 $2 f1=Q $19) 35... Ke3 $11) (34. Rd7+ Ke3 $16) 34... Bc3+ {[%emt 0:00:06]} 35. Kc2 {[%emt 0:00:49]} Be1 {[%emt 0:00:34]} 36. Rf3 {[%emt 0:00:29]} (36. Rxh7 f1=Q (36... f1=R 37. Rc7 $15) 37. Rc7 Qf2+ (37... Qxg2+ $2 38. Kc1 $19) 38. Kc1 Qf4+ 39. Kb2 Qxc7 $19) 36... Rg8 {[%emt 0:01:59]} 37. g3 {[%emt 0:00:49]} h5 {[%emt 0:01:10]} 38. Ra1 {[%emt 0:03:39]} h4 {[%emt 0:00:36] [#]} 39. gxh4 {[%emt 0:03:31]} (39. g4 $1 $18) 39... Rg1 $2 {[%emt 0:00:48][%mdl 8192] [#]} (39... Rg2 $11 40. Kd1 Bc3) 40. Rxf2 $3 {[%emt 0:00:05]} Bxf2 {[%emt 0:00:45]} (40... e5 41. Re2) 41. Rxg1 {[%emt 0:00:06]} Bxg1 {[%emt 0:00:06] KB-KP} 42. b4 {[%emt 0:00:35]} Bxh2 {[%emt 0:00:18]} 43. h5 {[%emt 0:00:13][%cal Bh4h5,Bh5h6,Bh6h7][%mdl 32] White wants to mate with h6.} Ke5 {[%emt 0:01:52]} 44. Kc3 {[%emt 0:02:10] a5 is the strong threat.} Kd6 {[%emt 0:00:37]} 45. h6 {[%emt 0:01:23] White mates.} Bf4 {[%emt 0:00:19]} 46. h7 {[%emt 0:00:12]} Be5+ {[%emt 0:00:06]} 47. Kc4 {[%emt 0:00:02]} Kc6 {[%emt 0:00:06]} 48. d4 {[%emt 0:00:10]} Bg7 {[%emt 0:00:08]} 49. e5 {[%emt 0:00:02]} Kb6 {[%emt 0:01:26]} 50. a5+ {[%emt 0:00:07]} Kb7 {[%emt 0:00:31]} 51. Kb5 {[%emt 0:00:34]} Kc7 {[%emt 0:00:16]} 52. a6 {[%emt 0:00:29]} Kb8 {[%emt 0:00:12]} 53. Kc6 {[%emt 0:00:18]} Ka7 {[%emt 0:00:04]} 54. b5 {[%emt 0:00:04]} Kb8 {[%emt 0:00:06]} 55. Kd7 {[%emt 0:00:06] Weighted Error Value: White=0.23 (precise) /Black=0.55  Loses game:     	---       	Black=1      Mistake:       	White=1     	Black=5      Inaccurate:     	White=1     	Black=4      OK:         	White=15    	Black=14     Best:        	White=3     	---        Brilliant:      	White=1     	---} 1-0